bitfinex/quotes_BTCUSD_20241215
["timestamp","ask_amount","ask_price","bid_price","bid_amount"]
[1734254640949,0.50870738,102030.0,102020.0,0.00388322]
[1734254652245,0.59678478,102030.0,102020.0,0.00388322]
[1734254655375,0.5968107,102030.0,102020.0,0.00388322]
[1734254657195,0.72896568,102030.0,102020.0,0.00388322]
[1734254659129,0.90517233,102030.0,102020.0,0.00388322]
[1734254662210,0.83982508,102030.0,102020.0,0.00388322]
[1734254662907,0.90517233,102030.0,102020.0,0.00388322]
[1734254668078,1.12543064,102030.0,102020.0,0.00388322]
[1734254668646,0.90517233,102030.0,102020.0,0.00388322]
[1734254682262,0.90550802,102030.0,102020.0,0.00388322]
[1734254684352,0.84016077,102030.0,102020.0,0.00388322]
[1734254684552,0.90550802,102030.0,102020.0,0.00388322]
[1734254685245,1.12595283,102030.0,102020.0,0.00388322]
[1734254685467,1.12595283,102030.0,102020.0,0.00226075]
[1734254685645,1.12595283,102030.0,102020.0,0.00377088]
[1734254690645,1.06060558,102030.0,102020.0,0.00478838]
[1734254692762,1.12595283,102030.0,102020.0,0.00478838]
[1734254696113,1.12600798,102030.0,102020.0,0.00478838]
[1734254698732,1.06066073,102030.0,102020.0,0.00478838]
[1734254698977,1.12600798,102030.0,102020.0,0.00478838]
[1734254703855,0.81735768,102030.0,102020.0,0.00478838]
[1734254704074,1.12602496,102030.0,102020.0,0.00478838]
[1734254717657,0.71500714,102030.0,102020.0,0.05294837]
[1734254717884,0.53863069,102030.0,102020.0,0.14088678]
[1734254718088,0.40634835,102030.0,102020.0,0.14088678]
[1734254719690,0.31816013,102030.0,102020.0,0.05294837]
[1734254721501,0.1961061,102030.0,102020.0,0.05294837]
[1734254721733,0.1961061,102030.0,102020.0,0.63040095]
[1734254721938,0.1961061,102030.0,102020.0,0.80627777]
[1734254722296,0.1961061,102030.0,102020.0,0.80597183]
[1734254722493,0.1961061,102030.0,102020.0,0.87131908]
[1734254722750,0.1961061,102030.0,102020.0,0.69554378]
[1734254722901,0.1961061,102030.0,102020.0,0.63019653]
[1734254723303,0.1961061,102030.0,102020.0,0.69554378]
[1734254725007,8.61e-05,102030.0,102020.0,0.89158278]
[1734254725403,8.61e-05,102030.0,102020.0,1.06735808]
[1734254725581,8.61e-05,102030.0,102020.0,0.89158278]
[1734254728554,8.61e-05,102030.0,102020.0,0.56715375]
[1734254728754,8.61e-05,102030.0,102020.0,0.43532227]
[1734254729184,8.61e-05,102030.0,102020.0,0.3057675]
[1734254729386,0.1961061,102030.0,102020.0,0.37111475]
[1734254729569,0.1961061,102030.0,102020.0,0.23928327]
[1734254731510,0.1961061,102030.0,102020.0,0.23914619]
[1734254732100,0.1961061,102030.0,102020.0,0.37077204]
[1734254732306,0.1961061,102030.0,102020.0,0.69464547]
[1734254732507,0.1961061,102030.0,102020.0,0.69463959]
[1734254732710,0.1961061,102030.0,102020.0,0.69460842]
[1734254733037,0.1961061,102030.0,102020.0,0.69460746]
[1734254733615,0.1961061,102030.0,102020.0,0.37077204]
[1734254734655,0.1961061,102030.0,102020.0,0.23914619]
[1734254736247,0.1961061,102030.0,102020.0,0.20600033]
[1734254739603,0.1961061,102030.0,102020.0,0.14065308]
[1734254739810,0.1961061,102030.0,102020.0,0.20600033]
[1734254740215,0.1961061,102030.0,102020.0,0.14065308]
[1734254740409,0.1961061,102030.0,102020.0,0.20600033]
[1734254740713,0.1961061,102030.0,102020.0,0.20598328]
[1734254746718,8.61e-05,102030.0,102020.0,0.20598328]
[1734254747360,0.1961061,102030.0,102020.0,0.20598328]
[1734254748232,0.1961061,102030.0,102020.0,0.65046953]
[1734254748233,8.61e-05,102030.0,102020.0,0.65046953]
[1734254748440,8.61e-05,102030.0,102020.0,1.20462771]
[1734254748634,8.61e-05,102030.0,102020.0,1.45035305]
[1734254749041,8.61e-05,102030.0,102020.0,0.73218591]
[1734254750237,8.61e-05,102030.0,102020.0,1.66918102]
[1734254754188,8.61e-05,102030.0,102020.0,1.74688825]
[1734254756414,8.61e-05,102030.0,102020.0,1.681541]
[1734254757026,8.61e-05,102030.0,102020.0,1.74688825]
[1734254757848,8.61e-05,102030.0,102020.0,1.61542821]
[1734254758083,8.61e-05,102030.0,102020.0,2.15587328]
[1734254758297,8.61e-05,102030.0,102020.0,1.70306824]
[1734254758909,8.61e-05,102030.0,102020.0,1.70283767]
[1734254761223,8.61e-05,102030.0,102020.0,1.48380032]
[1734254762205,8.61e-05,102030.0,102020.0,1.48395661]
[1734254763283,8.61e-05,102030.0,102020.0,1.51237205]
[1734254766311,8.61e-05,102030.0,102020.0,1.5124305]
[1734254770896,8.61e-05,102030.0,102020.0,1.48401506]
[1734254771300,8.61e-05,102030.0,102020.0,1.45226505]
[1734254771455,8.61e-05,102030.0,102020.0,1.48401506]
[1734254772493,8.61e-05,102030.0,102020.0,1.48403456]
[1734254775233,8.61e-05,102030.0,102020.0,1.45227612]
[1734254776637,8.61e-05,102030.0,102020.0,1.41917612]
[1734254779071,8.61e-05,102030.0,102020.0,1.25590314]
[1734254779276,8.61e-05,102030.0,102020.0,1.41334489]
[1734254781408,8.61e-05,102030.0,102020.0,1.13453437]
[1734254781409,0.1260861,102030.0,102020.0,1.13453437]
[1734254781622,0.1260861,102030.0,102020.0,1.26522887]
[1734254782467,0.1260861,102030.0,102020.0,1.08453437]
[1734254782651,0.1260861,102030.0,102020.0,1.3468306]
[1734254783059,0.1260861,102030.0,102020.0,1.47836659]
[1734254783721,0.1260861,102030.0,102020.0,1.3468306]
[1734254783928,0.1260861,102030.0,102020.0,1.34710609]
[1734254784133,0.1260861,102030.0,102020.0,1.21641159]
[1734254784339,0.1260861,102030.0,102020.0,1.34710609]
[1734254785146,0.1260861,102030.0,102020.0,1.33210609]
[1734254785344,0.1260861,102030.0,102020.0,1.33680977]
[1734254786558,0.1260861,102030.0,102020.0,1.27146252]
[1734254786980,0.1260861,102030.0,102020.0,1.33680977]
[1734254787515,0.12614079,102030.0,102020.0,1.33680977]
[1734254787751,0.12614079,102030.0,102020.0,1.27146252]
[1734254788066,0.13502961,102030.0,102020.0,1.27146252]
[1734254788508,0.13502961,102030.0,102020.0,1.27177133]
[1734254788657,0.12614079,102030.0,102020.0,1.33711858]
[1734254789012,0.07744079,102030.0,102020.0,1.33711858]
[1734254791130,0.07744079,102030.0,102020.0,1.16164712]
[1734254791741,0.07744079,102030.0,102020.0,1.42485431]
[1734254792784,0.07744079,102030.0,102020.0,1.42521119]
[1734254794708,0.07744079,102030.0,102020.0,1.2057748]
[1734254796610,0.07744079,102030.0,102020.0,1.205947]
[1734254801829,0.12574079,102030.0,102020.0,1.205947]
[1734254802021,0.12574079,102030.0,102020.0,1.42543845]
[1734254802437,0.12574079,102030.0,102020.0,1.16211478]
[1734254804838,0.12574079,102030.0,102020.0,1.03142028]
[1734254805049,0.12574079,102030.0,102020.0,1.16211478]
[1734254808674,0.12574079,102030.0,102020.0,1.16166912]
[1734254810823,0.12574079,102030.0,102020.0,1.16170819]
[1734254814739,0.12574079,102030.0,102020.0,0.96611485]
[1734254815800,0.12574079,102030.0,102020.0,1.16215385]
[1734254816824,0.13456763,102030.0,102020.0,1.16215385]
[1734254819188,0.13456763,102030.0,102020.0,1.42552313]
[1734254820226,0.13456763,102030.0,102020.0,1.42572809]
[1734254823467,0.13456763,102030.0,102020.0,1.22968909]
[1734254825249,0.13456763,102030.0,102020.0,1.01015894]
[1734254826203,0.33058763,102030.0,102020.0,1.01015894]
[1734254826406,0.33058763,102030.0,102020.0,0.87946444]
[1734254826607,0.33058763,102030.0,102020.0,1.01015894]
[1734254826805,0.33058763,102030.0,102020.0,0.94481169]
[1734254827873,0.33058763,102030.0,102020.0,0.74246204]
[1734254828075,0.33058763,102030.0,102020.0,0.97778096]
[1734254829123,0.33058763,102030.0,102020.0,1.10960554]
[1734254830427,0.33058763,102030.0,102020.0,1.07165717]
[1734254830757,0.33058763,102030.0,102020.0,1.10960554]
[1734254831162,0.33058763,102030.0,102020.0,0.89425829]
[1734254831163,0.35358763,102030.0,102020.0,0.89425829]
[1734254831362,0.35358763,102030.0,102020.0,0.72448551]
[1734254831773,0.35358763,102030.0,102020.0,0.54872574]
[1734254831968,0.35358763,102030.0,102020.0,0.09275118]
[1734254832292,0.35358763,102030.0,102020.0,0.00487588]
[1734254833945,0.35358763,102030.0,102020.0,0.04282425]
[1734254835333,0.35358763,102030.0,102020.0,0.00487588]
[1734254835747,0.35358763,102030.0,102020.0,0.04282425]
[1734254838791,0.45264166,102030.0,102020.0,0.00487588]
[1734254842403,0.45264166,102030.0,102020.0,0.04282425]
[1734254843239,0.45264166,102030.0,102020.0,0.00487588]
[1734254856690,0.45264166,102030.0,102020.0,0.0073988]
[1734254859098,0.51798891,102030.0,102020.0,0.0073988]
[1734254860502,0.56798891,102030.0,102020.0,0.0073988]
[1734254860731,0.65593774,102030.0,102020.0,0.0073988]
[1734254861714,0.81798937,102030.0,102020.0,0.0073988]
[1734254862728,0.196039,102020.0,102010.0,0.0001722]
[1734254862941,0.57288753,102020.0,102010.0,0.0001722]
[1734254863111,0.44219303,102020.0,102010.0,0.0001722]
[1734254863312,0.50754028,102020.0,102010.0,0.0001722]
[1734254863511,0.59548911,102020.0,102010.0,0.0001722]
[1734254863769,0.59547053,102020.0,102010.0,0.0001722]
[1734254865185,0.50754028,102020.0,102010.0,0.0001722]
[1734254865587,0.57288753,102020.0,102010.0,0.0001722]
[1734254865798,0.62288753,102020.0,102010.0,0.0001722]
[1734254866980,0.71081778,102020.0,102010.0,0.0001722]
[1734254867197,0.78493916,102020.0,102010.0,0.0001722]
[1734254867396,0.87286941,102020.0,102010.0,0.0001722]
[1734254867600,1.00476478,102020.0,102010.0,0.0001722]
[1734254867799,1.18062528,102020.0,102010.0,0.0001722]
[1734254868206,0.7240884,102020.0,102010.0,0.0001722]
[1734254868406,0.41919303,102020.0,102010.0,0.0001722]
[1734254869818,0.44219303,102020.0,102010.0,0.0001722]
[1734254870451,0.44219303,102020.0,102010.0,0.00729566]
[1734254872092,0.50754028,102020.0,102010.0,0.00729566]
[1734254872503,0.44219303,102020.0,102010.0,0.00729566]
[1734254872864,0.50754028,102020.0,102010.0,0.00729566]
[1734254873180,0.44219303,102020.0,102010.0,0.00729566]
[1734254873595,0.50754028,102020.0,102010.0,0.00729566]
[1734254874387,0.95465524,102020.0,102010.0,0.00729566]
[1734254874789,1.18042811,102020.0,102010.0,0.00729566]
[1734254875676,1.18051421,102020.0,102010.0,0.00729566]
[1734254876871,1.4002303,102020.0,102010.0,0.00729566]
[1734254877080,1.41940907,102020.0,102010.0,0.00729566]
[1734254878142,0.196078,102000.0,101990.0,0.0001722]
[1734254878345,0.50857928,102000.0,101990.0,0.0001722]
[1734254878607,0.44323203,102000.0,101990.0,0.0001722]
[1734254878938,0.50857928,102000.0,101990.0,0.0001722]
[1734254879379,0.44323203,102000.0,101990.0,0.0001722]
[1734254884717,0.45238887,102000.0,101990.0,0.0001722]
[1734254885941,0.45238887,102000.0,101990.0,0.00611617]
[1734254886141,0.45238887,102000.0,101990.0,0.0001722]
[1734254886353,0.45238887,102000.0,101990.0,0.00611617]
[1734254886553,0.45238887,102000.0,101990.0,0.0001722]
[1734254887395,0.45238887,102000.0,101990.0,0.00611617]
[1734254887589,0.45238887,102000.0,101990.0,0.0001722]
[1734254887802,0.45238887,102000.0,101990.0,0.00611613]
[1734254888009,0.45238887,102000.0,101990.0,0.0001722]
[1734254888201,0.45238887,102000.0,101990.0,0.00611613]
[1734254896995,0.30693484,102000.0,101990.0,0.07146338]
[1734254897414,0.22823484,102000.0,101990.0,0.00611613]
[1734254906717,0.22823484,102000.0,101990.0,0.07146338]
[1734254907979,0.20523484,102000.0,101990.0,0.10941175]
[1734254909833,0.28023484,102000.0,101990.0,0.10941175]
[1734254910042,0.28023484,102000.0,101990.0,0.19723325]
[1734254910591,0.28023484,102000.0,101990.0,0.19722878]
[1734254917376,0.28023484,102000.0,101990.0,0.32895432]
[1734254919165,0.28023484,102000.0,101990.0,0.65324794]
[1734254919581,0.28023484,102000.0,101990.0,0.26360707]
[1734254920358,0.30323484,102000.0,101990.0,0.26360707]
[1734254921244,0.30323484,102000.0,101990.0,0.13188153]
[1734254924099,0.30323484,102000.0,101990.0,0.13191024]
[1734254925730,0.30323484,102000.0,101990.0,0.09396187]
[1734254925932,0.35313484,102000.0,101990.0,0.00611613]
[1734254926180,0.45218887,102000.0,101990.0,0.00611613]
[1734254930312,0.40648887,102000.0,101990.0,0.00611613]
[1734254938911,0.30743484,102000.0,101990.0,0.07146338]
[1734254939115,0.00915684,102000.0,101990.0,0.10941175]
[1734254939317,0.5208222,102010.0,101990.0,0.19731522]
[1734254939519,0.5208222,102010.0,101990.0,0.32917042]
[1734254939762,0.7168942,102010.0,101990.0,0.32917042]
[1734254939962,0.7168942,102010.0,101990.0,0.65352253]
[1734254940159,0.5208222,102010.0,102000.0,0.06534725]
[1734254940581,0.3477532,102010.0,102000.0,0.07031392]
[1734254940816,0.2983532,102010.0,102000.0,0.07031392]
[1734254942984,0.30756066,102010.0,102000.0,0.07031392]
[1734254945452,0.30756066,102010.0,102000.0,0.10826229]
[1734254946675,0.30756066,102010.0,102000.0,0.10843449]
[1734254947443,0.30756066,102010.0,102000.0,0.07048612]
[1734254947649,0.30756066,102010.0,102000.0,0.10843449]
[1734254949967,0.30756066,102010.0,102000.0,0.04308724]
[1734254950215,0.45571469,102010.0,102000.0,0.00513887]
[1734254964434,0.52106194,102010.0,102000.0,0.00513887]
[1734254964843,0.60910282,102010.0,102000.0,0.00513887]
[1734254967311,0.77115445,102010.0,102000.0,0.00513887]
[1734254967508,0.90321577,102010.0,102000.0,0.00513887]
[1734254967894,0.77115445,102010.0,102000.0,0.00513887]
[1734254970504,1.07929753,102010.0,102000.0,0.00513887]
[1734254970913,1.12929753,102010.0,102000.0,0.00513887]
[1734254971116,1.34939974,102010.0,102000.0,0.00513887]
[1734254973196,1.34947873,102010.0,102000.0,0.00432764]
[1734254977941,1.34940019,102010.0,102000.0,0.00432764]
[1734254979237,1.28405294,102010.0,102000.0,0.00432764]
[1734254979435,1.12929782,102010.0,102000.0,0.00432764]
[1734254980086,1.34940019,102010.0,102000.0,0.00432764]
[1734254980492,1.12929782,102010.0,102000.0,0.00432764]
[1734254980684,1.21675226,102010.0,102000.0,0.00432764]
[1734254982415,1.21672094,102010.0,102000.0,0.00432764]
[1734254982617,1.1292665,102010.0,102000.0,0.00432764]
[1734254987092,1.12921065,102010.0,102000.0,0.00432764]
[1734254991562,1.12927395,102010.0,102000.0,0.00432764]
[1734254991770,1.34936306,102010.0,102000.0,0.00432764]
[1734254993115,1.44372407,102010.0,102000.0,0.00432764]
[1734254993551,1.34936306,102010.0,102000.0,0.00432764]
[1734254994590,0.023,102000.0,101990.0,0.00013221]
[1734254994816,0.79267785,102000.0,101990.0,0.00013221]
[1734254995026,0.96874913,102000.0,101990.0,0.00013221]
[1734254995235,1.18883824,102000.0,101990.0,0.00013221]
[1734254995437,0.7273306,102000.0,101990.0,0.00013221]
[1734254999956,0.74689455,102000.0,101990.0,0.00013221]
[1734255000621,0.68157531,102000.0,101990.0,0.00013221]
[1734255004444,0.85771878,102000.0,101990.0,0.00013221]
[1734255006296,0.79075483,102000.0,101990.0,0.00013221]
[1734255011456,1.01093417,102000.0,101990.0,0.00013221]
[1734255012867,0.71445483,102000.0,101990.0,0.00013221]
[1734255013315,0.71477171,102000.0,101990.0,0.00013221]
[1734255016627,0.71485781,102000.0,101990.0,0.00013221]
[1734255017012,0.7149795,102000.0,101990.0,0.00013221]
[1734255017856,0.7149795,102000.0,101990.0,0.00451651]
[1734255018065,0.7149795,102000.0,101990.0,0.00013221]
[1734255018272,0.7149795,102000.0,101990.0,0.00451621]
[1734255018485,0.7149795,102000.0,101990.0,0.00013221]
[1734255018698,0.7149795,102000.0,101990.0,0.00451621]
[1734255018918,0.7149795,102000.0,101990.0,0.00013221]
[1734255019150,0.7149795,102000.0,101990.0,0.00451621]
[1734255020984,0.7957795,102000.0,101990.0,0.00451621]
[1734255021454,0.79579305,102000.0,101990.0,0.00451621]
[1734255025777,0.79580387,102000.0,101990.0,0.00451621]
[1734255027785,0.91015112,102000.0,101990.0,0.00451621]
[1734255027987,0.84480387,102000.0,101990.0,0.00451621]
[1734255030135,0.84481982,102000.0,101990.0,0.00451621]
[1734255030925,1.0652652,102000.0,101990.0,0.00451621]
[1734255034350,1.13065062,102000.0,101990.0,0.00451621]
[1734255040335,1.04246702,102000.0,101990.0,0.00451621]
[1734255042402,0.97711977,102000.0,101990.0,0.00451621]
[1734255046475,0.97711977,102000.0,101990.0,0.00341413]
[1734255046699,0.219097,101990.0,101980.0,0.0001722]
[1734255046868,0.48365792,101990.0,101980.0,0.0001722]
[1734255047798,0.48365866,101990.0,101980.0,0.0001722]
[1734255048020,0.48365866,101990.0,101980.0,0.00071925]
[1734255052180,0.49292481,101990.0,101980.0,0.00071925]
[1734255055708,0.49292481,101990.0,101980.0,0.08881001]
[1734255055959,0.49292481,101990.0,101980.0,0.00071925]
[1734255056132,0.49292481,101990.0,101980.0,0.08881001]
[1734255056857,0.49293065,101990.0,101980.0,0.0888158]
[1734255057685,0.49293065,101990.0,101980.0,0.12676417]
[1734255063099,0.49293065,101990.0,101980.0,0.13108486]
[1734255064670,0.49293201,101990.0,101980.0,0.13110011]
[1734255069181,0.49293491,101990.0,101980.0,0.13111]
[1734255073566,0.49294309,101990.0,101980.0,0.13112513]
[1734255073800,0.49294325,101990.0,101980.0,0.13112541]
[1734255074956,0.49302935,101990.0,101980.0,0.13112541]
[1734255076155,0.31667532,101990.0,101980.0,0.26181991]
[1734255076364,0.22844925,101990.0,101980.0,0.9306261]
[1734255076632,0.22844925,101990.0,101980.0,0.89837885]
[1734255076842,0.22844925,101990.0,101980.0,0.90052472]
[1734255078313,0.22844925,101990.0,101980.0,0.9002362]
[1734255081357,0.22844925,101990.0,101980.0,0.72403488]
[1734255084870,0.22844925,101990.0,101980.0,0.78728146]
[1734255085291,0.22844925,101990.0,101980.0,0.68883421]
[1734255086442,0.22844925,101990.0,101980.0,0.62348696]
[1734255086648,0.30754925,101990.0,101980.0,0.5885005]
[1734255087095,0.30754925,101990.0,101980.0,0.65384775]
[1734255087299,0.30754925,101990.0,101980.0,0.5885005]
[1734255088919,0.30754925,101990.0,101980.0,0.26328516]
[1734255091655,0.30754925,101990.0,101980.0,0.32863241]
[1734255091766,0.30754925,101990.0,101980.0,0.32848788]
[1734255092391,0.30754925,101990.0,101980.0,0.65348572]
[1734255093648,0.30754925,101990.0,101980.0,0.58813847]
[1734255094565,0.30754925,101990.0,101980.0,0.26314063]
[1734255095897,0.30754925,101990.0,101980.0,0.58813266]
[1734255100992,0.30754925,101990.0,101980.0,0.58814297]
[1734255109929,0.11145225,101990.0,101980.0,0.65349022]
[1734255110126,0.03235225,101990.0,101980.0,1.08511465]
[1734255114339,0.22844925,101990.0,101980.0,1.08478052]
[1734255114929,0.03235225,101990.0,101980.0,1.08478052]
[1734255116860,0.10845225,101990.0,101980.0,1.08478052]
[1734255117978,0.30454925,101990.0,101980.0,1.04934921]
[1734255121203,0.30454925,101990.0,101980.0,1.04498332]
[1734255122204,0.30454925,101990.0,101980.0,1.04513232]
[1734255125838,0.10845225,101990.0,101980.0,1.04513232]
[1734255126217,0.30454925,101990.0,101980.0,1.04513232]
[1734255133694,0.30454925,101990.0,101980.0,1.04519084]
[1734255136484,0.30454925,101990.0,101980.0,0.97984359]
[1734255136699,0.35304925,101990.0,101980.0,0.97984359]
[1734255136915,0.35304925,101990.0,101980.0,1.04519084]
[1734255139889,0.35304925,101990.0,101980.0,1.04530547]
[1734255143651,0.35304925,101990.0,101980.0,0.97995822]
[1734255144271,0.35304925,101990.0,101980.0,0.98006661]
[1734255147554,0.35304925,101990.0,101980.0,0.89201468]
[1734255149082,0.35304925,101990.0,101980.0,0.95736193]
[1734255149322,0.35304925,101990.0,101980.0,0.89201468]
[1734255149512,0.35304925,101990.0,101980.0,0.95736193]
[1734255151369,0.35304925,101990.0,101980.0,0.89201468]
[1734255153223,0.35304925,101990.0,101980.0,0.89227396]
[1734255154693,0.35304925,101990.0,101980.0,0.95762121]
[1734255157782,0.35304925,101990.0,101980.0,0.82550318]
[1734255158014,0.15695225,101990.0,101980.0,0.82550318]
[1734255158223,0.15695225,101990.0,101980.0,0.95765947]
[1734255159790,0.15695225,101990.0,101980.0,1.15377547]
[1734255159999,0.15695225,101990.0,101980.0,1.02161918]
[1734255160460,0.10845225,101990.0,101980.0,1.02161918]
[1734255160874,0.08545225,101990.0,101980.0,1.02161918]
[1734255161314,0.10845225,101990.0,101980.0,1.02161918]
[1734255161689,0.10845225,101990.0,101980.0,1.08696643]
[1734255162062,0.10845225,101990.0,101980.0,1.08707419]
[1734255163937,0.10845225,101990.0,101980.0,1.02172694]
[1734255164132,0.10845225,101990.0,101980.0,1.08707419]
[1734255164496,0.10845225,101990.0,101980.0,1.1225055]
[1734255164675,0.10845225,101990.0,101980.0,1.04537585]
[1734255164676,0.00935225,101990.0,101980.0,1.04537585]
[1734255164915,0.00935225,101990.0,101980.0,1.08942177]
[1734255166384,8.61e-05,101990.0,101980.0,1.08897206]
[1734255169355,8.61e-05,101990.0,101980.0,1.30896696]
[1734255171018,8.61e-05,101990.0,101980.0,1.30872479]
[1734255171415,8.61e-05,101990.0,101980.0,1.04475169]
[1734255171619,8.61e-05,101990.0,101980.0,1.30872479]
[1734255172337,8.61e-05,101990.0,101980.0,1.04475169]
[1734255174996,8.61e-05,101990.0,101980.0,0.87862588]
[1734255175222,0.0807861,101990.0,101980.0,1.00932038]
[1734255175351,0.0807861,101990.0,101980.0,0.94397313]
[1734255175927,0.0807861,101990.0,101980.0,1.1199104]
[1734255176230,0.0807861,101990.0,101980.0,0.94397313]
[1734255176370,0.0807861,101990.0,101980.0,1.11990355]
[1734255181076,0.3457831,101990.0,101980.0,0.75938627]
[1734255181286,0.3457831,101990.0,101980.0,0.95667999]
[1734255181494,0.3457831,101990.0,101980.0,1.04465213]
[1734255183006,0.3457831,101990.0,101980.0,1.04457961]
[1734255187478,0.3457831,101990.0,101980.0,1.04465406]
[1734255187688,0.3457831,101990.0,101980.0,0.82470189]
[1734255187892,0.3457831,101990.0,101980.0,0.58339291]
[1734255192232,0.3457831,101990.0,101980.0,0.58345608]
[1734255197034,0.3457831,101990.0,101980.0,0.58342812]
[1734255202644,0.3457831,101990.0,101980.0,0.258634]
[1734255203267,0.3457831,101990.0,101980.0,0.12665417]
[1734255204885,0.3457831,101990.0,101980.0,0.258634]
[1734255205142,0.3457831,101990.0,101980.0,0.12665417]
[1734255210757,0.3457831,101990.0,101980.0,0.03866762]
[1734255210958,0.3457831,101990.0,101980.0,0.12664139]
[1734255212100,0.3457831,101990.0,101980.0,0.12577852]
[1734255213871,0.3457831,101990.0,101980.0,0.12595072]
[1734255219525,0.0689,101990.0,101980.0,0.12595072]
[1734255219908,0.264997,101990.0,101980.0,0.12595072]
[1734255222635,0.344797,101990.0,101980.0,0.12595072]
[1734255224538,0.344797,101990.0,101980.0,0.12601933]
[1734255225094,0.3448831,101990.0,101980.0,0.12601933]
[1734255225215,0.3448831,101990.0,101980.0,0.25808291]
[1734255228553,0.3448831,101990.0,101980.0,0.58318103]
[1734255228970,0.3448831,101990.0,101980.0,0.58327739]
[1734255229590,0.3448831,101990.0,101980.0,0.75942492]
[1734255237392,0.3448831,101990.0,101980.0,0.58327739]
[1734255237393,0.44393713,101990.0,101980.0,0.58327739]
[1734255237395,0.53211741,101990.0,101980.0,0.12605071]
[1734255237636,0.44393713,101990.0,101980.0,0.12605071]
[1734255237843,0.53211741,101990.0,101980.0,0.12605071]
[1734255238663,0.53211741,101990.0,101980.0,0.03797695]
[1734255239496,0.44393713,101990.0,101980.0,0.03797695]
[1734255249300,0.44393713,101990.0,101980.0,0.0001722]
[1734255249537,0.44393713,101990.0,101980.0,0.03797695]
[1734255255729,0.50928438,101990.0,101980.0,0.03797695]
[1734255257264,0.50928438,101990.0,101980.0,0.0001722]
[1734255257488,0.50928438,101990.0,101980.0,0.03797695]
[1734255258006,0.44393713,101990.0,101980.0,0.03797695]
[1734255258653,0.53208924,101990.0,101980.0,0.03797695]
[1734255260835,0.53208924,101990.0,101980.0,0.0001722]
[1734255267391,0.53207753,101990.0,101980.0,0.0001722]
[1734255273283,0.59742478,101990.0,101980.0,0.0001722]
[1734255273695,0.66428813,101990.0,101980.0,0.0001722]
[1734255273903,0.72963538,101990.0,101980.0,0.0001722]
[1734255279644,0.90591618,101990.0,101980.0,0.0001722]
[1734255280657,0.44393713,101990.0,101980.0,0.0001722]
[1734255280861,0.84066662,101990.0,101980.0,0.0001722]
[1734255285296,0.84069925,101990.0,101980.0,0.0001722]
[1734255287712,0.76089925,101990.0,101980.0,0.0001722]
[1734255287918,0.53866053,101990.0,101980.0,0.0001722]
[1734255299121,0.31823713,101990.0,101980.0,0.0001722]
[1734255306167,0.31823713,101990.0,101980.0,0.00451437]
[1734255309410,0.39743713,101990.0,101980.0,0.00451437]
[1734255318372,0.44633713,101990.0,101980.0,0.00451437]
[1734255325772,0.42633713,101990.0,101980.0,0.00451437]
[1734255326382,0.42333713,101990.0,101980.0,0.00451437]
[1734255327920,0.44633713,101990.0,101980.0,0.00451437]
[1734255337484,0.44633713,101990.0,101980.0,0.09259798]
[1734255342387,0.53451373,101990.0,101980.0,0.09259798]
[1734255344544,0.53451373,101990.0,101980.0,0.2247234]
[1734255347942,0.44633713,101990.0,101980.0,0.00451437]
[1734255348155,0.53457356,101990.0,101980.0,0.22487172]
[1734255351244,0.53457356,101990.0,101980.0,0.09265731]
[1734255354510,0.53457356,101990.0,101980.0,0.22487172]
[1734255354889,0.53457356,101990.0,101980.0,0.09265731]
[1734255357036,0.44633713,101990.0,101980.0,0.00451437]
[1734255357218,0.5345727,101990.0,101980.0,0.09265769]
[1734255370241,0.66692606,101990.0,101980.0,0.09265769]
[1734255371559,0.66692606,101990.0,101980.0,0.00451437]
[1734255374374,0.66690116,101990.0,101980.0,0.00451437]
[1734255382280,0.53455812,101990.0,101980.0,0.00451437]
[1734255382497,0.66688961,101990.0,101980.0,0.00696736]
[1734255382795,0.53455812,101990.0,101980.0,0.00696736]
[1734255386516,0.53455761,101990.0,101980.0,0.00696736]
[1734255386699,0.53455761,101990.0,101980.0,0.09504076]
[1734255391013,0.53455903,101990.0,101980.0,0.09504143]
[1734255396164,0.66689188,101990.0,101980.0,0.00696736]
[1734255396362,0.84333569,101990.0,101980.0,0.00696736]
[1734255396529,0.90868294,101990.0,101980.0,0.00696736]
[1734255396738,0.84333569,101990.0,101980.0,0.00696736]
[1734255398471,0.66689188,101990.0,101980.0,0.00696736]
[1734255404512,0.66685911,101990.0,101980.0,0.00696736]
[1734255409131,0.6668494,101990.0,101980.0,0.00696736]
[1734255418366,0.66685103,101990.0,101980.0,0.00696736]
[1734255419888,0.53875103,101990.0,101980.0,0.12056736]
[1734255420088,0.8188174,102000.0,101990.0,0.07350475]
[1734255420089,8.61e-05,102000.0,101990.0,0.07350475]
[1734255420290,8.61e-05,102000.0,101990.0,1.29430428]
[1734255420471,8.61e-05,102000.0,101990.0,1.21308905]
[1734255420722,8.61e-05,102000.0,101990.0,1.2784363]
[1734255420935,8.61e-05,102000.0,101990.0,1.60330594]
[1734255421146,8.61e-05,102000.0,101990.0,1.67235563]
[1734255421351,8.61e-05,102000.0,101990.0,1.73739178]
[1734255421524,8.61e-05,102000.0,101990.0,1.70684209]
[1734255421743,8.61e-05,102000.0,101990.0,1.28216266]
[1734255422238,8.61e-05,102000.0,101990.0,1.25158905]
[1734255422471,8.61e-05,102000.0,101990.0,1.4711383]
[1734255422676,8.61e-05,102000.0,101990.0,1.54228815]
[1734255423299,8.61e-05,102000.0,101990.0,1.45357066]
[1734255423942,8.61e-05,102000.0,101990.0,1.41879702]
[1734255424382,8.61e-05,102000.0,101990.0,1.55041137]
[1734255426233,8.61e-05,102000.0,101990.0,1.63809523]
[1734255429415,8.61e-05,102000.0,101990.0,1.41871818]
[1734255430196,8.61e-05,102000.0,101990.0,1.41646258]
[1734255430372,8.61e-05,102000.0,101990.0,1.45123622]
[1734255431213,8.61e-05,102000.0,101990.0,1.50123622]
[1734255432102,8.61e-05,102000.0,101990.0,1.46646258]
[1734255433351,8.61e-05,102000.0,101990.0,1.29124062]
[1734255434306,8.61e-05,102000.0,101990.0,1.29077102]
[1734255434511,8.61e-05,102000.0,101990.0,1.32554466]
[1734255436434,8.61e-05,102000.0,101990.0,0.96764327]
[1734255436857,8.61e-05,102000.0,101990.0,1.00241691]
[1734255437256,8.61e-05,102000.0,101990.0,1.03241691]
[1734255437485,8.61e-05,102000.0,101990.0,0.86634057]
[1734255437685,8.61e-05,102000.0,101990.0,0.90111421]
[1734255438244,0.023,102020.0,102000.0,0.392154]
[1734255438601,0.023,102020.0,102010.0,0.07015355]
[1734255439319,0.023,102020.0,102010.0,0.1079583]
[1734255441037,0.0230861,102020.0,102010.0,0.1079583]
[1734255446752,0.0230861,102020.0,102010.0,0.04261105]
[1734255448354,0.1026861,102020.0,102010.0,0.04261105]
[1734255448590,0.1518861,102020.0,102010.0,0.04261105]
[1734255449054,0.1518861,102020.0,102010.0,0.1079583]
[1734255449739,0.0230861,102020.0,102010.0,0.1079583]
[1734255456505,0.0230861,102020.0,102010.0,0.3040173]
[1734255456657,8.61e-05,102020.0,102010.0,0.3416416]
[1734255456874,8.61e-05,102020.0,102010.0,0.4246416]
[1734255457120,8.61e-05,102020.0,102010.0,0.5774644]
[1734255457460,8.61e-05,102020.0,102010.0,0.51211715]
[1734255458460,8.61e-05,102020.0,102010.0,0.64333047]
[1734255459020,8.61e-05,102020.0,102010.0,0.96666076]
[1734255459230,8.61e-05,102020.0,102010.0,0.93188712]
[1734255459429,8.61e-05,102020.0,102010.0,1.03200801]